Cogmind - Beta 9.4 @@@ ROGUE MODE // 2020.02.18 @ 10:20:39 Player: goblin Result: Destroyed by G-47 Trooper with Particle Gun Performance ------------- Evolutions (1) 500 Regions Visited (3) 600 Robots Destroyed (32) 160 Value Destroyed (776) 776 Prototype IDs (0) 0 Alien Tech Used (0) 0 Bonus (0) 0 TOTAL SCORE: 2036 Bonus ------- None Cogmind --------- Core Integrity 0/400 Matter 247/300 Energy 77/100 System Corruption 8% Temperature Cool (195) Movement Core (50) Location -9/Storage Parts ------- > --- POWER (1) -------- (None) > --- PROPULSION (4) --- (None) > --- UTILITY (2) ------ Recalibrator > --- WEAPON (2) ------- (None) > --- INVENTORY (4) ---- Ion Engine Heat Sink Peak State ------------ > --- POWER ------------ Improved Ion Engine > --- PROPULSION ------- Aluminum Leg Aluminum Leg Aluminum Leg Aluminum Leg > --- UTILITY ---------- Small Storage Unit Recalibrator > --- WEAPON ----------- Light Assault Rifle Autogun > --- INVENTORY -------- Ion Engine Heat Sink Small Laser Small Laser Grenade Launcher [Rating: 14] Favorites ----------- Power Improved Ion Engine Engine Improved Ion Engine Propulsion Aluminum Leg Treads Light Treads Leg Aluminum Leg Utility Small Storage Unit Device Recalibrator Storage Small Storage Unit Weapon Small Laser Energy Gun Small Laser Ballistic Gun Autogun Launcher Grenade Launcher Build | -11 -10 -9 -9 ------- Run | Scr Mat Mat Sto Slots Evolved 2 | . . 2 . Power . | . . . . Propulsion 2 | . . 2 . Utility . | . . . . Weapon . | . . . . Parts Attached 29 | 6 2 6 15 Power 4 | 1 . 1 2 Engine 4 | 1 . 1 2 Core . | . . . . Reactor . | . . . . Propulsion 7 | 2 . 3 2 Treads 2 | . . . 2 Leg 5 | 2 . 3 . Wheel . | . . . . Hover . | . . . . Flight . | . . . . Utility 4 | 1 2 . 1 Device 3 | . 2 . 1 Storage 1 | 1 . . . Processor . | . . . . Hackware . | . . . . Protection . | . . . . Artifact . | . . . . Weapon 14 | 2 . 2 10 Energy Gun 8 | 2 . 1 5 Energy Cannon . | . . . . Ballistic Gun 4 | . . 1 3 Ballistic Cannon . | . . . . Launcher 2 | . . . 2 Special Weapon . | . . . . Impact Weapon . | . . . . Slashing Weapon . | . . . . Piercing Weapon . | . . . . Special Melee Weapon . | . . . . Unidentified Prototypes . | . . . . Parts Lost 22 | . . 5 17 Power 4 | . . 1 3 Propulsion 6 | . . 1 5 Utility 2 | . . 1 1 Weapon 10 | . . 2 8 Highest Loss Streak 9 | . . 5 9 Average Slot Usage (%) 77 | . 98 66 72 Engine 10 | . 14 8 9 Treads 3 | . . . 5 Leg 21 | . 28 26 17 Device 8 | . 13 4 7 Storage 11 | . 14 11 10 Energy Gun 16 | . 28 9 14 Ballistic Gun 4 | . . 6 6 Naked Turns . | . . . . Heaviest Build 16 | 11 12 13 16 Greatest Support 40 | 20 20 40 40 Greatest Overweight (x) 4 | . . . 4 Average Overweight (x) . | . . . . Largest Inventory Capacity 6 | 6 6 6 6 Average Capacity 5 | 5 6 6 5 Most Carried 6 | 6 6 6 6 Average Carried 4 | 1 5 5 4 Final Capacity 6 | 6 6 6 4 Final Carried 6 | 6 6 5 2 Class Distribution -------------------- 53% | Scavenger-Mutant 46% | Mutant Dominant Class ---------------- Mutant | -10/Materials Mutant | -9/Materials Scavenger-Mutant | -9/Storage Resources | -11 -10 -9 -9 ----------- Run | Scr Mat Mat Sto Matter Collected 726 | 199 78 170 279 Remotely . | . . . . Salvage Created 962 | . 133 291 538 Parts 71 | . 12 14 45 Haulers Intercepted . | . . . . Recyclers Shooed 1 | . . . 1 Parts Field Recycled . | . . . . Retrieved Matter . | . . . . Parts Self-Destructed . | . . . . Prevented . | . . . . Kills | -11 -10 -9 -9 ------- Run | Scr Mat Mat Sto Combat Hostiles Destroyed 27 | . 4 7 16 Guns 23 | . 4 7 12 AOE 3 | . . . 3 Classes Destroyed 9 | . 4 2 3 Worker 1 | . . . 1 Builder 1 | . . . 1 Recycler 1 | . . . 1 Mechanic 1 | . 1 . . Watcher 1 | . 1 . . Swarmer 11 | . 3 1 7 Grunt 10 | . 1 3 6 Brawler 2 | . . 2 . Sentry 4 | . . 1 3 Best Kill Streak 7 | . 3 5 7 Combat Bots Only 5 | . 3 5 5 Max Kills in Single Turn 4 | . 1 1 4 Gunslinging . | . . . . Exploded 3 | . . . 3 Melee . | . . . . Uniques/NPCs Destroyed . | . . . . Combat | -11 -10 -9 -9 -------- Run | Scr Mat Mat Sto Damage Taken 1990 | . 171 356 1463 Core 434 | . 24 33 377 Absorbed by Shields . | . . . . Core Remaining (%) 95 | 100 90 . . Volleys Fired 111 | . 12 34 65 Largest 2 | . 2 1 2 Hottest 100 | . 100 50 80 Shots Fired 168 | . 24 34 110 Gun 165 | . 24 34 107 Cannon . | . . . . Launcher 3 | . . . 3 Special . | . . . . Kinetic 96 | . . 30 66 Thermal 69 | . 24 4 41 Explosive 3 | . . . 3 Electromagnetic . | . . . . Robot Hit Streak 13 | . 4 13 13 Robot Miss Streak 4 | . 4 3 4 Penetration Max . | . . . . Secondary Targets 2 | . . . 2 Max Gunslinging Chain 1 | . . . 1 Shots Hit Robots 109 | . 12 27 70 Core Hits 59 | . 10 12 37 Critical Hits . | . . . . Critical Kills . | . . . . Critical Parts Destroyed . | . . . . Melee Attacks . | . . . . Impact . | . . . . Slashing . | . . . . Piercing . | . . . . Sneak Attacks . | . . . . Combat Hostiles . | . . . . Follow-up Attacks . | . . . . Damage Inflicted 1742 | . 176 395 1171 Guns 1400 | . 173 395 832 Cannons . | . . . . Explosions 319 | . . . 319 Melee . | . . . . Ramming 23 | . 3 . 20 Kinetic 859 | . . 359 500 Thermal 541 | . 173 36 332 Explosive 319 | . . . 319 Electromagnetic . | . . . . Impact . | . . . . Slashing . | . . . . Piercing . | . . . . Highest Corruption 8 | . . 8 8 Average Corruption 7 | . . 7 8 Corruption Purged . | . . . . Effects 53 | . . 11 42 Message Errors 5 | . . 1 4 Matter Fused 9 | . . . 9 Heat Flow Errors 2 | . . . 2 Energy Discharges 8 | . . 4 4 Data Loss (minor) 3 | . . . 3 Data Loss (major) 1 | . . . 1 Misfires 1 | . . 1 . Targeting Errors 18 | . . 4 14 Weapon Failures 6 | . . 1 5 Overload Shots . | . . . . Overflow Damage . | . . . . Projectiles . | . . . . Explosions . | . . . . Melee . | . . . . Knockbacks . | . . . . Impact . | . . . . Kinetic . | . . . . Secondary . | . . . . Self-Inflicted Damage 60 | . . . 60 Shots 2 | . . . 2 Rammed 3 | . . . 3 Targets Rammed 5 | . 1 . 4 Kicked 2 | . 1 . 1 Crushed . | . . . . Highest Temperature 285 | . 285 18 209 Average Temperature 68 | . 125 6 49 Received Heat Transfer 708 | . 12 54 642 Siege Activations . | . . . . Robots Corrupted . | . . . . Combat Hostiles . | . . . . Parts Fried . | . . . . Impact Corruptions . | . . . . Robots Melted . | . . . . Combat Hostiles . | . . . . Parts Melted 3 | . 2 . 1 Heat Transferred 1401 | . 518 111 772 Parts Sabotaged . | . . . . Parts Stolen . | . . . . Parts Stripped . | . . . . Power Chain Reactions . | . . . . Missiles Intercepted . | . . . . Alert | -11 -10 -9 -9 ------- Run | Scr Mat Mat Sto Peak Influence 270 | . 117 155 270 Average Influence 82 | . 37 58 120 Maximum Alert Level 1 | . . . 1 Low Security (%) 87 | 100 100 100 75 Level 1 12 | . . . 24 Level 2 . | . . . . Level 3 . | . . . . Level 4 . | . . . . Level 5 . | . . . . High Security . | . . . . Max Security . | . . . . Squads Dispatched 4 | . . . 4 Investigation . | . . . . Extermination . | . . . . Reinforcement 3 | . . . 3 Assault . | . . . . Garrison 1 | . . . 1 Intercept . | . . . . Construction Impeded 1 | . . . 1 Haulers Reinforced . | . . . . Stealth | -11 -10 -9 -9 --------- Run | Scr Mat Mat Sto Distress Signals 5 | . 2 . 3 Communications Jammed . | . . . . Distress Signals . | . . . . Times Spotted 50 | . 9 9 32 Peak Tracking Total 9 | . 3 4 9 Tactical Retreats 2 | . 1 1 . Traps | -11 -10 -9 -9 ------- Run | Scr Mat Mat Sto Traps Triggered . | . . . . Indirectly . | . . . . Trap Hack Attempts . | . . . . Triggered . | . . . . Disarmed 6 | . . . 6 Reprogrammed . | . . . . Reused . | . . . . Traps Extracted . | . . . . Installed . | . . . . Triggered . | . . . . Machines | -11 -10 -9 -9 ---------- Run | Scr Mat Mat Sto Machines Disabled 2 | . . . 2 Max in Single Turn 1 | . . . 1 Machines Sabotaged . | . . . . Garrisons Compromised . | . . . . Overloaded Fab Kills . | . . . . Fab Network Shutdowns . | . . . . Hacking | -11 -10 -9 -9 --------- Run | Scr Mat Mat Sto Machines Accessed 4 | . 1 1 2 Terminals 3 | . 1 . 2 Fabricators . | . . . . Repair Stations 1 | . . 1 . Recycling Units . | . . . . Scanalyzers . | . . . . Garrison Access . | . . . . Total Hacks 6 | . 2 1 3 Successful 5 | . 2 1 2 Failed 1 | . . . 1 Catastrophic . | . . . . Database Lockouts . | . . . . Manual . | . . . . Terminals 5 | . 2 . 3 Fabricators . | . . . . Repair Stations 1 | . . 1 . Recycling Units . | . . . . Scanalyzers . | . . . . Garrison Access . | . . . . Terminal Hacks 4 | . 2 . 2 Unreport Threat 2 | . 1 . 1 Disarm Traps 1 | . . . 1 Maintenance Status 1 | . 1 . . Fabricator Hacks . | . . . . Repair Station Hacks 1 | . . 1 . Scan Component 1 | . . 1 . Recycling Unit Hacks . | . . . . Scanalyzer . | . . . . Garrison Access Hacks . | . . . . Unauthorized Hacks . | . . . . Terminals . | . . . . Fabricators . | . . . . Repair Stations . | . . . . Recycling Units . | . . . . Scanalyzers . | . . . . Garrison Access . | . . . . Data Cores Recovered . | . . . . Used . | . . . . Hacking Detections 3 | . . 1 2 Full Trace Events . | . . . . Feedback Events . | . . . . Feedback Blocked . | . . . . Robot Schematics Acquired . | . . . . Robots Built . | . . . . Matter . | . . . . Time . | . . . . Total Robot Build Rating . | . . . . Part Schematics Acquired . | . . . . Parts Built . | . . . . Matter . | . . . . Time . | . . . . Total Part Build Rating . | . . . . Parts Repaired . | . . . . Time . | . . . . Parts Recycled . | . . . . Recycled Matter . | . . . . Retrieved Matter . | . . . . Retrieved Components . | . . . . Parts Scanalyzed . | . . . . Part Schematics Acquired . | . . . . Parts Damaged . | . . . . Bothacking | -11 -10 -9 -9 ------------ Run | Scr Mat Mat Sto Used RIF Installer . | . . . . Robots Hacked . | . . . . Non-combat . | . . . . Combat . | . . . . Robot Hacks Applied . | . . . . Relay Couplers Released . | . . . . Robots Rewired . | . . . . Allies Hacked . | . . . . Hacks Repelled . | . . . . Allies | -11 -10 -9 -9 -------- Run | Scr Mat Mat Sto Total Allies . | . . . . Largest Group . | . . . . Highest-Rated Group . | . . . . Highest-Rated Ally . | . . . . Total Orders . | . . . . Ally Attacks . | . . . . Total Damage . | . . . . Kills . | . . . . Allies Corrupted . | . . . . Allies Melted . | . . . . Intel | -11 -10 -9 -9 ------- Run | Scr Mat Mat Sto Robot Analysis Total . | . . . . Derelict Logs Recovered . | . . . . Drone Launches . | . . . . Drone Recoveries . | . . . . Exploration | -11 -10 -9 -9 ------------- Run | Scr Mat Mat Sto Turns Passed 1392 | 122 294 232 744 Spaces Moved 769 | 90 207 108 364 Core 18 | 5 . . 13 Treads 201 | . . . 201 Legs 550 | 85 207 108 150 Wheels . | . . . . Hover . | . . . . Flight . | . . . . Fastest Speed 50 | 50 120 120 120 Average Speed 131 | 116 120 120 144 Slowest Speed 250 | 120 120 120 250 Overloaded Moves . | . . . . Propulsion Burnouts . | . . . . Robots Hopped . | . . . . Cave-ins Triggered . | . . . . Exploration Rate (%) 23 | 5 34 8 45 Regions Visited 3 Branch Regions 1 Pre-discovered Areas . | . . . . Known Exits Taken . | . . . . Unknown Exits Taken 3 | 1 1 1 . Scrap Searched . | . . . . Spaces Dug . | . . . . Terrain Destroyed 15 | . . . 15 Melee . | . . . . Projectile . | . . . . AOE 15 | . . . 15 Actions | -11 -10 -9 -9 --------- Run | Scr Mat Mat Sto Total 997 | 107 229 183 478 Wait 47 | . 1 29 17 Move 766 | 89 206 107 364 Hop . | . . . . Pick Up 31 | 12 3 6 10 Fast Attach 2 | . 2 . . Attach 24 | 6 . 6 12 Detach . | . . . . Swap 3 | . . . 3 Drop 8 | . 4 1 3 Fire 111 | . 12 34 65 Melee . | . . . . Ram . | . . . . Kick 2 | . 1 . 1 Crush 3 | . . . 3 Escape Stasis . | . . . . Rewire . | . . . . Trap . | . . . . Miscellaneous . | . . . . Route ------- -11/Scrapyard -10/Materials -9/Materials -9/Storage History --------- Turn | Location | Event 4 | -11/Scrapyard | Discovered new exit (range 15) 123 | -11/Scrapyard | Entered Materials 313 | -10/Materials | Build established: Mutant 405 | -10/Materials | Discovered new exit (range 6) 417 | -10/Materials | Entered another Materials area 417 | -9/Materials | Evolved 2 slots: Propulsion x2 479 | -9/Materials | Discovered new exit (range 15) 552 | -9/Materials | Lost 5 parts (1p1n1u2w) 649 | -9/Materials | Entered Storage 911 | -9/Storage | Build established: Scavenger-Mutant 966 | -9/Storage | Core integrity fell below 50% 1007 | -9/Storage | Lost 7 parts (1p4n2w) 1383 | -9/Storage | Garrison activated, responded to threat 1385 | -9/Storage | Core integrity fell below 20% 1393 | -9/Storage | Destroyed by G-47 Trooper with Particle Gun Last Messages --------------- G-34 Mercenary system corrupted by crushing effect. G-34 Mercenary destroyed. 89 Matter crushed. K-01 Serf collects debris. System corrupted: Heat flow error (+208). K-01 Serf collects debris. System corrupted: Hvy. Assault Rifle targeting data glitched. Lgt. Assault Rifle destroyed. G-47 Trooper calls for garrison reinforcements. ALERT: Activating Garrison Access S001. [Achievement: Troublemaker] K-01 Serf collects debris. Lgt. Treads destroyed. Sml. Storage Unit destroyed. K-01 Serf collects debris. G-34 Mercenary destroyed. Hvy. Assault Rifle destroyed. K-01 Serf collects debris. System corrupted: Beam Rifle targeting data glitched. Beam Rifle destroyed. Map ----- +----------------------------------------------------+ | ?????????????????????????????????????????????????? | | ?????????????????????????????????????????????????? | | ?????????????????????????????????????????????????? | | ?????????????????????????????????????????????????? | | ?????????????????????????????????????????????????? | | ?????????????????????????????????????????????????? | | ?????????????????????????????????????????????????? | | ?????????????????????????????????????????????????? | | ????????????????????????? ??????????????????????? | | ????????????????????????? ??????????????????????? | | ????????????????????????? ??????????????????????? | | ????????????????????????# "?????????????????????? | | ????????????????????????# "?????????????????????? | | ????????????????????????# ?????????????????????? | | ????????????????????##??? ?????????????????????? | | ?????????????????? ? ??? """ ??????????????????? | | ???????????????? """ ?? """???????????????????? | | ???????????????? """ ?? """???????????????????? | | ???????????????? ! """ / ????????????????????? | | ???????????????? # ????????????????????? | | ???????????????" """ ##% #????????????????????? | | ???????????????# """ # ##???????????????????? | | ???????????????# """ wk ????????????????????? | | ??????????????## #% """""?????????????????? | | #########+############ g=% !!!"?????????????????? | | g g @k"""""?????????????????? | | !%[ "?????????????????????? | | g u *"!%????????????????????? | | ####### gg #### """"???????????????????? | | #??# #??# ??????????????????????? | | #### g % #?#########?????????????????? | | "" ############# #?#! = = #?????????????????? | | """####????##??# #?# ! #????##########???? | | R"## ????? ??# #?? [ #????# #???? | | """## ?????" ## ##??? ###### #???? | | ##### ?????" # ######+### # """" #???? | | =#??# ?????" + "" # "??"" #???? | | ##??# ?????" # T + "???"" #???? | | ####???# ????" # ##### #### # ""???" #???? | | ???????# """" ## ##???# #??## ## ""??" #???? | | ???????# ## %##???# #???# ## """" #???? | | ???????###+########%%##" ?#+#???# ## #???? | | ######### % # ?????# ###########???? | | % #? ??## ##???###??????? | | #######+############?? """" # #####T#"?????? | | # #??????? """" + "" "?????? | | + #??????? """" # T "?????? | | ### #????????""""??# #######"?????? | | ??# #??????? ????######????????????? | | ??# #?????? ????????????????????????? | +----------------------------------------------------+ Best States ------------- Heat Dissipation 35 Energy Generation 12 Energy Capacity 265 Matter Stores 300 Matter Capacity 300 Sight Range 16 Terrain Scan Range 14 Terrain Scan Density 10 Evasion (%) 40 Recoil Reduction 1 Item Schematics ----------------- None Robot Schematics ------------------ None Fabricated ------------ Nothing Alien Tech Used ----------------- None Achievements -------------- Crack Shot Everything Is Under Control Troublemaker Challenges ------------ None Game ------ Seed CatalystOmegaThrower Manual? 0 Play Time 00:23:46 Cumulative 1.3 hours Start 2020.02.18 @ 09:49:09 End 2020.02.18 @ 10:20:39 Sessions 1 Manual Loads 0 Difficulty Rogue Special Mode None Game No. 6 Rogue 6 Adventurer 0 Explorer 0 Win Type - Total 0 Types 0/0/0/0/0/0/0 Lore% 0 Gallery% 2 Achievement% 3 Wizard Run 0 Options --------- ASCII 0 Keyboard 0 Movement Numpad Keybinds 0 Fullscreen 1 Font 18/X11 Map View 76x50 Tactical HUD 0 Map Filters NONE Filters NONE Steam 1 RUN: 24d3e65c-4021-482b-9e1e-4ea95a97bdcb